[Event "Titled Tuesday Blitz May 9 Early 2023"]
[White "Bilych, Olexiy"]
[Black "Aravindh, Chithambaram VR."]
[WhiteFideId "14156504"]
[BlackFideId "5072786"]
[WhiteElo "2320"]
[BlackElo "2596"]
[Result "1-0"]
[Round "05"]
[TimeControl "180+2"]
[Date "2023.05.09"]
[WhiteClock "0:00:14"]
[BlackClock "0:00:00"]

1. d4 {[%clk 0:03:00]}  d5 {[%clk 0:02:55]} 2. c4 {[%clk 0:03:01]}  e5 {[%clk 0:02:53]} 3. dxe5 {[%clk 0:03:00]}  d4 {[%clk 0:02:53]} 4. Nf3 {[%clk 0:02:59]}  Nc6 {[%clk 0:02:53]} 5. a3 {[%clk 0:02:57]}  Nge7 {[%clk 0:02:53]} 6. g3 {[%clk 0:02:46]}  Ng6 {[%clk 0:02:51]} 7. Bg2 {[%clk 0:02:45]}  Ngxe5 {[%clk 0:02:49]} 8. Nbd2 {[%clk 0:02:22]}  Be7 {[%clk 0:02:45]} 9. O-O {[%clk 0:02:22]}  O-O {[%clk 0:02:42]} 10. b4 {[%clk 0:02:22]}  Be6 {[%clk 0:02:37]} 11. Bb2 {[%clk 0:02:12]}  Nxc4 {[%clk 0:02:13]} 12. Nxc4 {[%clk 0:02:10]}  Bxc4 {[%clk 0:02:14]} 13. Rc1 {[%clk 0:01:59]}  Bd5 {[%clk 0:02:05]} 14. Nxd4 {[%clk 0:01:58]}  Bxg2 {[%clk 0:01:51]} 15. Kxg2 {[%clk 0:01:59]}  Nxd4 {[%clk 0:01:41]} 16. Qxd4 {[%clk 0:01:58]}  Qxd4 {[%clk 0:01:40]} 17. Bxd4 {[%clk 0:01:59]}  c6 {[%clk 0:01:41]} 18. Rfd1 {[%clk 0:01:51]}  Rfd8 {[%clk 0:01:38]} 19. Bc5 {[%clk 0:01:35]}  Kf8 {[%clk 0:01:17]} 20. Rxd8+ {[%clk 0:01:21]}  Rxd8 {[%clk 0:01:18]} 21. Bxa7 {[%clk 0:01:21]}  Ra8 {[%clk 0:01:18]} 22. Be3 {[%clk 0:01:15]}  Bf6 {[%clk 0:00:59]} 23. b5 {[%clk 0:00:53]}  cxb5 {[%clk 0:00:59]} 24. Rc7 {[%clk 0:00:52]}  Ke8 {[%clk 0:00:48]} 25. Rxb7 {[%clk 0:00:52]}  Rxa3 {[%clk 0:00:48]} 26. Rxb5 {[%clk 0:00:50]}  Ra2 {[%clk 0:00:44]} 27. Rb8+ {[%clk 0:00:45]}  Kd7 {[%clk 0:00:42]} 28. Rb7+ {[%clk 0:00:42]}  Ke6 {[%clk 0:00:42]} 29. Kf3 {[%clk 0:00:42]}  Ra3 {[%clk 0:00:41]} 30. Rb6+ {[%clk 0:00:41]}  Kd7 {[%clk 0:00:40]} 31. Rb7+ {[%clk 0:00:29]}  Ke6 {[%clk 0:00:39]} 32. Rb4 {[%clk 0:00:26]}  Bg5 {[%clk 0:00:32]} 33. h4 {[%clk 0:00:23]}  Bxe3 {[%clk 0:00:32]} 34. Re4+ {[%clk 0:00:23]}  Kf6 {[%clk 0:00:32]} 35. Rxe3 {[%clk 0:00:24]}  Ra5 {[%clk 0:00:30]} 36. Rb3 {[%clk 0:00:23]}  g6 {[%clk 0:00:27]} 37. g4 {[%clk 0:00:21]}  h5 {[%clk 0:00:25]} 38. gxh5 {[%clk 0:00:19]}  Rxh5 {[%clk 0:00:25]} 39. Rb4 {[%clk 0:00:19]}  Ra5 {[%clk 0:00:23]} 40. e3 {[%clk 0:00:18]}  Rc5 {[%clk 0:00:23]} 41. Kg4 {[%clk 0:00:18]}  Rc1 {[%clk 0:00:21]} 42. Rb6+ {[%clk 0:00:18]}  Kg7 {[%clk 0:00:22]} 43. Rb5 {[%clk 0:00:18]}  Rg1+ {[%clk 0:00:21]} 44. Kf3 {[%clk 0:00:19]}  Rh1 {[%clk 0:00:22]} 45. Kg3 {[%clk 0:00:19]}  Rg1+ {[%clk 0:00:22]} 46. Kh2 {[%clk 0:00:19]}  Ra1 {[%clk 0:00:22]} 47. h5 {[%clk 0:00:19]}  gxh5 {[%clk 0:00:21]} 48. Rxh5 {[%clk 0:00:19]}  Kf6 {[%clk 0:00:21]} 49. Kg3 {[%clk 0:00:19]}  Ra3 {[%clk 0:00:20]} 50. Kf4 {[%clk 0:00:20]}  Ra2 {[%clk 0:00:18]} 51. f3 {[%clk 0:00:19]}  Ke6 {[%clk 0:00:19]} 52. Rb5 {[%clk 0:00:19]}  Ra4+ {[%clk 0:00:17]} 53. e4 {[%clk 0:00:19]}  Ra3 {[%clk 0:00:18]} 54. Rb6+ {[%clk 0:00:19]}  Ke7 {[%clk 0:00:18]} 55. Kg4 {[%clk 0:00:19]}  Re3 {[%clk 0:00:17]} 56. Rb7+ {[%clk 0:00:18]}  Ke6 {[%clk 0:00:17]} 57. Rb6+ {[%clk 0:00:19]}  Ke7 {[%clk 0:00:17]} 58. Kf4 {[%clk 0:00:19]}  Ra3 {[%clk 0:00:16]} 59. e5 {[%clk 0:00:18]}  Rc3 {[%clk 0:00:16]} 60. Ke4 {[%clk 0:00:18]}  Ra3 {[%clk 0:00:06]} 61. f4 {[%clk 0:00:19]}  Ra4+ {[%clk 0:00:05]} 62. Kf5 {[%clk 0:00:19]}  Ra7 {[%clk 0:00:06]} 63. Rb8 {[%clk 0:00:17]}  Rc7 {[%clk 0:00:06]} 64. Rh8 {[%clk 0:00:17]}  Ra7 {[%clk 0:00:06]} 65. Rh7 {[%clk 0:00:17]}  Ra5 {[%clk 0:00:05]} 66. Rh1 {[%clk 0:00:16]}  Ra7 {[%clk 0:00:05]} 67. Rb1 {[%clk 0:00:16]}  Rc7 {[%clk 0:00:06]} 68. Rb6 {[%clk 0:00:16]}  Ra7 {[%clk 0:00:06]} 69. Kg5 {[%clk 0:00:16]}  Ra5 {[%clk 0:00:04]} 70. Rb7+ {[%clk 0:00:16]}  Ke6 {[%clk 0:00:05]} 71. f5+ {[%clk 0:00:16]}  Kxe5 {[%clk 0:00:03]} 72. Re7+ {[%clk 0:00:16]}  Kd6 {[%clk 0:00:03]} 73. Rxf7 {[%clk 0:00:17]}  Ra1 {[%clk 0:00:03]} 74. Kf6 {[%clk 0:00:17]}  Rf1 {[%clk 0:00:03]} 75. Rf8 {[%clk 0:00:17]}  Kd7 {[%clk 0:00:02]} 76. Kg7 {[%clk 0:00:14]}  Rg1+ {[%clk 0:00:02]} 77. Kf7 {[%clk 0:00:14]}  Ra1 {[%clk 0:00:02]} 78. f6 {[%clk 0:00:14]}  Ra7 {[%clk 0:00:01]} 79. Rh8 {[%clk 0:00:13]}  Kd6+ {[%clk 0:00:01]} 80. Kg6 {[%clk 0:00:14]}  Ke6 {[%clk 0:00:01]} 81. Re8+ {[%clk 0:00:14]}  Kd6 {[%clk 0:00:00]} 82. f7 {[%clk 0:00:14]} 1-0


[Site "https://www.chess.com"]

[Event "Titled Tuesday Blitz May 9 Early 2023"]
[White "Seo, Jung Min"]
[Black "Nguyen, Ngoc Truong Son"]
[WhiteFideId "1734687"]
[BlackFideId "12401110"]
[WhiteElo "2468"]
[BlackElo "2556"]
[Result "1-0"]
[Round "05"]
[TimeControl "180+2"]
[Date "2023.05.09"]
[WhiteClock "0:00:10"]
[BlackClock "0:00:00"]

1. Nf3 {[%clk 0:02:59]}  Nf6 {[%clk 0:02:59]} 2. g3 {[%clk 0:03:00]}  d5 {[%clk 0:02:59]} 3. Bg2 {[%clk 0:03:00]}  Bf5 {[%clk 0:02:58]} 4. O-O {[%clk 0:03:00]}  e6 {[%clk 0:02:57]} 5. d3 {[%clk 0:03:00]}  c6 {[%clk 0:02:57]} 6. c4 {[%clk 0:02:58]}  dxc4 {[%clk 0:02:56]} 7. dxc4 {[%clk 0:02:58]}  Qxd1 {[%clk 0:02:56]} 8. Rxd1 {[%clk 0:02:58]}  Nbd7 {[%clk 0:02:56]} 9. Nc3 {[%clk 0:02:44]}  Bc2 {[%clk 0:02:52]} 10. Rd2 {[%clk 0:02:42]}  Bg6 {[%clk 0:02:52]} 11. Nh4 {[%clk 0:02:41]}  Bh5 {[%clk 0:02:51]} 12. Bf3 {[%clk 0:02:37]}  Bb4 {[%clk 0:02:44]} 13. Bxh5 {[%clk 0:02:31]}  Nxh5 {[%clk 0:02:42]} 14. Rc2 {[%clk 0:02:29]}  O-O-O {[%clk 0:02:40]} 15. Nf3 {[%clk 0:02:25]}  Nhf6 {[%clk 0:02:32]} 16. Bg5 {[%clk 0:02:17]}  h6 {[%clk 0:02:30]} 17. Bxf6 {[%clk 0:02:17]}  Nxf6 {[%clk 0:02:31]} 18. a3 {[%clk 0:02:15]}  Be7 {[%clk 0:02:28]} 19. Ne5 {[%clk 0:02:14]}  Rhf8 {[%clk 0:02:27]} 20. Rd1 {[%clk 0:02:14]}  Rxd1+ {[%clk 0:02:25]} 21. Nxd1 {[%clk 0:02:13]}  Ne4 {[%clk 0:02:24]} 22. Nc3 {[%clk 0:01:59]}  Nd6 {[%clk 0:01:51]} 23. c5 {[%clk 0:01:49]}  Nf5 {[%clk 0:01:50]} 24. b4 {[%clk 0:01:50]}  Kc7 {[%clk 0:01:40]} 25. Ne4 {[%clk 0:01:47]}  f6 {[%clk 0:01:02]} 26. Ng6 {[%clk 0:01:46]}  Rd8 {[%clk 0:01:03]} 27. g4 {[%clk 0:01:16]}  Nd4 {[%clk 0:01:02]} 28. Rb2 {[%clk 0:01:15]}  f5 {[%clk 0:01:02]} 29. Nxe7 {[%clk 0:01:03]}  fxe4 {[%clk 0:01:02]} 30. Kg2 {[%clk 0:00:56]}  Nb5 {[%clk 0:00:50]} 31. Rb3 {[%clk 0:00:55]}  Rd2 {[%clk 0:00:38]} 32. Re3 {[%clk 0:00:55]}  Nd4 {[%clk 0:00:37]} 33. Rxe4 {[%clk 0:00:54]}  Nxe2 {[%clk 0:00:36]} 34. Ng6 {[%clk 0:00:51]}  Ra2 {[%clk 0:00:18]} 35. Rxe6 {[%clk 0:00:48]}  Kd8 {[%clk 0:00:17]} 36. Re3 {[%clk 0:00:45]}  b6 {[%clk 0:00:14]} 37. cxb6 {[%clk 0:00:44]}  axb6 {[%clk 0:00:15]} 38. Ne5 {[%clk 0:00:38]}  Kc7 {[%clk 0:00:12]} 39. Nc4 {[%clk 0:00:28]}  Nf4+ {[%clk 0:00:11]} 40. Kf3 {[%clk 0:00:25]}  Nd5 {[%clk 0:00:12]} 41. Rd3 {[%clk 0:00:25]}  b5 {[%clk 0:00:10]} 42. Ne3 {[%clk 0:00:24]}  Ne7 {[%clk 0:00:08]} 43. Nf5 {[%clk 0:00:21]}  Nxf5 {[%clk 0:00:08]} 44. gxf5 {[%clk 0:00:21]}  Rc2 {[%clk 0:00:08]} 45. Kg3 {[%clk 0:00:20]}  Rc4 {[%clk 0:00:08]} 46. f4 {[%clk 0:00:20]}  Re4 {[%clk 0:00:09]} 47. Kg4 {[%clk 0:00:18]}  Re2 {[%clk 0:00:09]} 48. h4 {[%clk 0:00:15]}  Rg2+ {[%clk 0:00:09]} 49. Kf3 {[%clk 0:00:12]}  Rg1 {[%clk 0:00:09]} 50. Re3 {[%clk 0:00:11]}  Kd7 {[%clk 0:00:08]} 51. Re6 {[%clk 0:00:10]}  Ra1 {[%clk 0:00:07]} 52. Rg6 {[%clk 0:00:10]}  Rxa3+ {[%clk 0:00:07]} 53. Kg4 {[%clk 0:00:10]}  Rb3 {[%clk 0:00:04]} 54. Rxg7+ {[%clk 0:00:11]}  Ke8 {[%clk 0:00:03]} 55. Rg6 {[%clk 0:00:09]}  Rxb4 {[%clk 0:00:03]} 56. Rxc6 {[%clk 0:00:09]}  Rb1 {[%clk 0:00:02]} 57. Rxh6 {[%clk 0:00:09]}  b4 {[%clk 0:00:02]} 58. Rb6 {[%clk 0:00:09]}  b3 {[%clk 0:00:03]} 59. f6 {[%clk 0:00:09]}  b2 {[%clk 0:00:03]} 60. Kf5 {[%clk 0:00:09]}  Kf7 {[%clk 0:00:03]} 61. h5 {[%clk 0:00:10]}  Rh1 {[%clk 0:00:03]} 62. Rb7+ {[%clk 0:00:10]}  Kg8 {[%clk 0:00:03]} 63. Rxb2 {[%clk 0:00:10]}  Rxh5+ {[%clk 0:00:00]} 64. Kg6 {[%clk 0:00:10]} 1-0


[Site "https://www.chess.com"]

[Event "Titled Tuesday Blitz May 9 Early 2023"]
[White "Andreikin, Dmitry"]
[Black "Quesada Perez, Yuniesky"]
[WhiteFideId "4158814"]
[BlackFideId "3504409"]
[WhiteElo "2736"]
[BlackElo "2585"]
[Result "0-1"]
[Round "05"]
[TimeControl "180+2"]
[Date "2023.05.09"]
[WhiteClock "0:00:00"]
[BlackClock "0:00:06"]

1. d4 {[%clk 0:03:00]}  d5 {[%clk 0:02:59]} 2. Nf3 {[%clk 0:02:58]}  Nf6 {[%clk 0:02:59]} 3. c4 {[%clk 0:02:57]}  c6 {[%clk 0:02:59]} 4. Qc2 {[%clk 0:02:55]}  dxc4 {[%clk 0:02:53]} 5. e4 {[%clk 0:02:55]}  b5 {[%clk 0:02:52]} 6. b3 {[%clk 0:02:55]}  cxb3 {[%clk 0:02:51]} 7. axb3 {[%clk 0:02:56]}  e6 {[%clk 0:02:50]} 8. Bd3 {[%clk 0:02:56]}  Be7 {[%clk 0:02:50]} 9. O-O {[%clk 0:02:55]}  Bb7 {[%clk 0:02:49]} 10. Bd2 {[%clk 0:02:53]}  a5 {[%clk 0:02:48]} 11. Rc1 {[%clk 0:02:40]}  Nbd7 {[%clk 0:02:46]} 12. Nc3 {[%clk 0:02:37]}  b4 {[%clk 0:02:16]} 13. Na4 {[%clk 0:02:35]}  h6 {[%clk 0:02:16]} 14. Bf4 {[%clk 0:01:59]}  O-O {[%clk 0:02:12]} 15. Qe2 {[%clk 0:01:59]}  Re8 {[%clk 0:02:09]} 16. h3 {[%clk 0:01:56]}  Rc8 {[%clk 0:02:03]} 17. Nc5 {[%clk 0:01:41]}  Nxc5 {[%clk 0:01:57]} 18. dxc5 {[%clk 0:01:42]}  Nd7 {[%clk 0:01:58]} 19. Qe3 {[%clk 0:01:06]}  Nxc5 {[%clk 0:01:46]} 20. Rd1 {[%clk 0:01:00]}  Qb6 {[%clk 0:01:40]} 21. e5 {[%clk 0:00:55]}  Rcd8 {[%clk 0:01:37]} 22. Bc2 {[%clk 0:00:53]}  Rxd1+ {[%clk 0:01:36]} 23. Rxd1 {[%clk 0:00:54]}  Rd8 {[%clk 0:01:36]} 24. Re1 {[%clk 0:00:31]}  Nd7 {[%clk 0:01:24]} 25. Qe4 {[%clk 0:00:23]}  Nf8 {[%clk 0:01:23]} 26. Bxh6 {[%clk 0:00:23]}  gxh6 {[%clk 0:00:20]} 27. Qg4+ {[%clk 0:00:23]}  Kh8 {[%clk 0:00:20]} 28. Qh5 {[%clk 0:00:23]}  Kg7 {[%clk 0:00:21]} 29. Re4 {[%clk 0:00:23]}  Ng6 {[%clk 0:00:19]} 30. Rg4 {[%clk 0:00:23]}  c5 {[%clk 0:00:15]} 31. Bxg6 {[%clk 0:00:19]}  Bxf3 {[%clk 0:00:15]} 32. gxf3 {[%clk 0:00:18]}  Bg5 {[%clk 0:00:14]} 33. Bxf7 {[%clk 0:00:18]}  Rd1+ {[%clk 0:00:12]} 34. Kg2 {[%clk 0:00:17]}  Kf8 {[%clk 0:00:09]} 35. Qg6 {[%clk 0:00:15]}  Ke7 {[%clk 0:00:10]} 36. h4 {[%clk 0:00:11]}  Qa6 {[%clk 0:00:10]} 37. hxg5 {[%clk 0:00:10]}  Qf1+ {[%clk 0:00:10]} 38. Kg3 {[%clk 0:00:10]}  Qg1+ {[%clk 0:00:10]} 39. Kf4 {[%clk 0:00:11]}  Rd4+ {[%clk 0:00:10]} 40. Qe4 {[%clk 0:00:10]}  Rxe4+ {[%clk 0:00:10]} 41. Kxe4 {[%clk 0:00:08]}  Qe1+ {[%clk 0:00:10]} 42. Kd3 {[%clk 0:00:08]}  Kxf7 {[%clk 0:00:07]} 43. gxh6 {[%clk 0:00:09]}  Qd1+ {[%clk 0:00:07]} 44. Kc4 {[%clk 0:00:09]}  Qc2+ {[%clk 0:00:07]} 45. Kb5 {[%clk 0:00:09]}  c4 {[%clk 0:00:05]} 46. Rxc4 {[%clk 0:00:06]}  Qxb3 {[%clk 0:00:06]} 47. Rc7+ {[%clk 0:00:04]}  Kg8 {[%clk 0:00:06]} 48. Re7 {[%clk 0:00:03]}  Qd3+ {[%clk 0:00:05]} 49. Kxa5 {[%clk 0:00:04]}  b3 {[%clk 0:00:05]} 50. Rb7 {[%clk 0:00:04]}  Qc3+ {[%clk 0:00:05]} 51. Ka4 {[%clk 0:00:04]}  b2 {[%clk 0:00:06]} 52. h7+ {[%clk 0:00:03]}  Kh8 {[%clk 0:00:06]} 53. f4 {[%clk 0:00:00]}  Qc6+ {[%clk 0:00:06]} 0-1


[Site "https://www.chess.com"]

[Event "Titled Tuesday Blitz May 9 Early 2023"]
[White "Martinez Alcantara, Jose Eduardo"]
[Black "Averjanov, Alexey"]
[WhiteFideId "3805662"]
[BlackFideId "14109867"]
[WhiteElo "2711"]
[BlackElo "2701"]
[Result "1/2-1/2"]
[Round "05"]
[TimeControl "180+2"]
[Date "2023.05.09"]
[WhiteClock "0:00:13"]
[BlackClock "0:01:18"]

1. e4 {[%clk 0:03:00]}  c6 {[%clk 0:02:59]} 2. d4 {[%clk 0:02:58]}  d5 {[%clk 0:02:59]} 3. e5 {[%clk 0:02:58]}  Bf5 {[%clk 0:02:59]} 4. h4 {[%clk 0:02:57]}  h5 {[%clk 0:02:59]} 5. Bd3 {[%clk 0:02:57]}  Bxd3 {[%clk 0:02:58]} 6. Qxd3 {[%clk 0:02:57]}  e6 {[%clk 0:02:59]} 7. Bg5 {[%clk 0:02:56]}  Qa5+ {[%clk 0:02:58]} 8. Nd2 {[%clk 0:02:56]}  Qa6 {[%clk 0:02:58]} 9. c4 {[%clk 0:02:55]}  Bb4 {[%clk 0:02:58]} 10. b3 {[%clk 0:02:55]}  Nd7 {[%clk 0:02:56]} 11. Ne2 {[%clk 0:02:52]}  Ne7 {[%clk 0:02:56]} 12. O-O {[%clk 0:02:49]}  Ng6 {[%clk 0:02:56]} 13. Nf3 {[%clk 0:02:48]}  Be7 {[%clk 0:02:52]} 14. Bxe7 {[%clk 0:02:46]}  Nxe7 {[%clk 0:02:53]} 15. Rfd1 {[%clk 0:02:40]}  c5 {[%clk 0:02:51]} 16. Ng3 {[%clk 0:02:36]}  cxd4 {[%clk 0:02:47]} 17. Qxd4 {[%clk 0:02:35]}  Qb6 {[%clk 0:02:42]} 18. Qd3 {[%clk 0:02:25]}  Rd8 {[%clk 0:02:40]} 19. Rac1 {[%clk 0:02:21]}  O-O {[%clk 0:02:33]} 20. Nxh5 {[%clk 0:02:20]}  Ng6 {[%clk 0:02:31]} 21. cxd5 {[%clk 0:02:14]}  Ndxe5 {[%clk 0:02:28]} 22. Nxe5 {[%clk 0:02:15]}  Nxe5 {[%clk 0:02:28]} 23. Qg3 {[%clk 0:02:15]}  Ng6 {[%clk 0:02:24]} 24. dxe6 {[%clk 0:02:12]}  Qxe6 {[%clk 0:02:24]} 25. Nf4 {[%clk 0:02:07]}  Nxf4 {[%clk 0:02:22]} 26. Qxf4 {[%clk 0:02:08]}  Rxd1+ {[%clk 0:02:22]} 27. Rxd1 {[%clk 0:02:08]}  Re8 {[%clk 0:02:18]} 28. g3 {[%clk 0:01:56]}  g6 {[%clk 0:02:16]} 29. Qd4 {[%clk 0:01:52]}  Qe2 {[%clk 0:02:14]} 30. a4 {[%clk 0:01:45]}  Qf3 {[%clk 0:02:12]} 31. Rb1 {[%clk 0:01:30]}  b6 {[%clk 0:02:07]} 32. b4 {[%clk 0:01:28]}  Re2 {[%clk 0:02:02]} 33. Rf1 {[%clk 0:01:27]}  Ra2 {[%clk 0:01:59]} 34. b5 {[%clk 0:01:16]}  Re2 {[%clk 0:01:52]} 35. Rc1 {[%clk 0:01:14]}  Qf5 {[%clk 0:01:45]} 36. Rf1 {[%clk 0:00:42]}  Kh7 {[%clk 0:01:34]} 37. Qc4 {[%clk 0:00:36]}  Qf3 {[%clk 0:01:31]} 38. Qb4 {[%clk 0:00:31]}  Re4 {[%clk 0:01:29]} 39. Qd6 {[%clk 0:00:30]}  Rxa4 {[%clk 0:01:28]} 40. Qc7 {[%clk 0:00:30]}  Ra5 {[%clk 0:01:23]} 41. Rb1 {[%clk 0:00:29]}  Ra2 {[%clk 0:01:18]} 42. Rf1 {[%clk 0:00:28]}  Ra5 {[%clk 0:01:18]} 43. Rb1 {[%clk 0:00:24]}  Ra2 {[%clk 0:01:18]} 44. Rf1 {[%clk 0:00:13]}  Ra5 {[%clk 0:01:18]} 1/2-1/2


[Site "https://www.chess.com"]

[Event "Titled Tuesday Blitz May 9 Early 2023"]
[White "Ter-Sahakyan, Samvel"]
[Black "Parkhov, Yair"]
[WhiteFideId "13302531"]
[BlackFideId "2813408"]
[WhiteElo "2545"]
[BlackElo "2421"]
[Result "1-0"]
[Round "05"]
[TimeControl "180+2"]
[Date "2023.05.09"]
[WhiteClock "0:00:19"]
[BlackClock "0:00:00"]

1. d4 {[%clk 0:03:00]}  d5 {[%clk 0:02:58]} 2. c4 {[%clk 0:03:00]}  c6 {[%clk 0:02:59]} 3. Nf3 {[%clk 0:03:00]}  Nf6 {[%clk 0:02:59]} 4. Qc2 {[%clk 0:03:00]}  g6 {[%clk 0:02:58]} 5. e3 {[%clk 0:02:59]}  Bg7 {[%clk 0:02:49]} 6. Be2 {[%clk 0:02:59]}  O-O {[%clk 0:02:47]} 7. O-O {[%clk 0:02:59]}  Na6 {[%clk 0:02:36]} 8. Nc3 {[%clk 0:02:42]}  Bf5 {[%clk 0:02:17]} 9. Qb3 {[%clk 0:02:42]}  c5 {[%clk 0:02:17]} 10. cxd5 {[%clk 0:02:30]}  cxd4 {[%clk 0:02:09]} 11. Nxd4 {[%clk 0:02:29]}  Nc5 {[%clk 0:02:04]} 12. Qc4 {[%clk 0:02:28]}  Rc8 {[%clk 0:01:58]} 13. Nxf5 {[%clk 0:02:26]}  gxf5 {[%clk 0:01:59]} 14. Qf4 {[%clk 0:02:19]}  Nxd5 {[%clk 0:01:51]} 15. Qxf5 {[%clk 0:02:19]}  e6 {[%clk 0:01:44]} 16. Qg4 {[%clk 0:02:18]}  f5 {[%clk 0:01:29]} 17. Qh3 {[%clk 0:01:53]}  Nxc3 {[%clk 0:01:28]} 18. bxc3 {[%clk 0:01:53]}  Ne4 {[%clk 0:01:26]} 19. Bf3 {[%clk 0:01:49]}  Nxc3 {[%clk 0:00:49]} 20. Bb2 {[%clk 0:01:49]}  Ne2+ {[%clk 0:00:42]} 21. Bxe2 {[%clk 0:01:48]}  Bxb2 {[%clk 0:00:43]} 22. Rab1 {[%clk 0:01:38]}  Qf6 {[%clk 0:00:42]} 23. Bd1 {[%clk 0:01:29]}  b6 {[%clk 0:00:39]} 24. Bb3 {[%clk 0:01:29]}  Ba3 {[%clk 0:00:34]} 25. Rbd1 {[%clk 0:01:20]}  Rcd8 {[%clk 0:00:29]} 26. Qg3+ {[%clk 0:01:20]}  Kh8 {[%clk 0:00:28]} 27. Qc7 {[%clk 0:01:20]}  Qe7 {[%clk 0:00:18]} 28. Qxe7 {[%clk 0:01:02]}  Bxe7 {[%clk 0:00:19]} 29. Bxe6 {[%clk 0:01:02]}  Kg7 {[%clk 0:00:19]} 30. Rxd8 {[%clk 0:00:59]}  Bxd8 {[%clk 0:00:17]} 31. g3 {[%clk 0:00:59]}  Kf6 {[%clk 0:00:17]} 32. Bb3 {[%clk 0:00:59]}  Be7 {[%clk 0:00:18]} 33. Rd1 {[%clk 0:00:57]}  Rd8 {[%clk 0:00:18]} 34. Rxd8 {[%clk 0:00:54]}  Bxd8 {[%clk 0:00:19]} 35. Kg2 {[%clk 0:00:54]}  Be7 {[%clk 0:00:18]} 36. Bc4 {[%clk 0:00:52]}  Ke5 {[%clk 0:00:17]} 37. Kf3 {[%clk 0:00:44]}  Bb4 {[%clk 0:00:13]} 38. Ke2 {[%clk 0:00:44]}  Kd6 {[%clk 0:00:10]} 39. h3 {[%clk 0:00:42]}  h6 {[%clk 0:00:10]} 40. f4 {[%clk 0:00:41]}  Ke7 {[%clk 0:00:09]} 41. g4 {[%clk 0:00:41]}  Kf6 {[%clk 0:00:09]} 42. Bd3 {[%clk 0:00:41]}  fxg4 {[%clk 0:00:09]} 43. hxg4 {[%clk 0:00:41]}  a5 {[%clk 0:00:07]} 44. a4 {[%clk 0:00:41]}  Ba3 {[%clk 0:00:08]} 45. Kf3 {[%clk 0:00:41]}  Bc1 {[%clk 0:00:07]} 46. e4 {[%clk 0:00:41]}  Ke6 {[%clk 0:00:08]} 47. Bc4+ {[%clk 0:00:39]}  Kd6 {[%clk 0:00:08]} 48. Bb5 {[%clk 0:00:23]}  Kc5 {[%clk 0:00:08]} 49. e5 {[%clk 0:00:20]}  Kd4 {[%clk 0:00:00]} 50. e6 {[%clk 0:00:19]} 1-0


[Site "https://www.chess.com"]

[Event "Titled Tuesday Blitz May 9 Early 2023"]
[White "Volkov, Maksim"]
[Black "Maghsoodloo, Parham"]
[WhiteFideId "54123070"]
[BlackFideId "12539929"]
[WhiteElo "2297"]
[BlackElo "2655"]
[Result "0-1"]
[Round "05"]
[TimeControl "180+2"]
[Date "2023.05.09"]
[WhiteClock "0:00:06"]
[BlackClock "0:00:36"]

1. d4 {[%clk 0:03:00]}  Nf6 {[%clk 0:02:57]} 2. c4 {[%clk 0:03:00]}  e6 {[%clk 0:02:57]} 3. g3 {[%clk 0:03:00]}  d5 {[%clk 0:02:57]} 4. Bg2 {[%clk 0:03:01]}  Bb4+ {[%clk 0:02:57]} 5. Bd2 {[%clk 0:03:00]}  a5 {[%clk 0:02:57]} 6. Nf3 {[%clk 0:02:59]}  O-O {[%clk 0:02:57]} 7. Qc2 {[%clk 0:02:58]}  Nbd7 {[%clk 0:02:57]} 8. O-O {[%clk 0:02:56]}  c6 {[%clk 0:02:54]} 9. Bf4 {[%clk 0:02:41]}  Be7 {[%clk 0:02:52]} 10. h4 {[%clk 0:02:33]}  b6 {[%clk 0:02:51]} 11. Nbd2 {[%clk 0:02:28]}  Ba6 {[%clk 0:02:50]} 12. Rfc1 {[%clk 0:02:25]}  Rc8 {[%clk 0:02:47]} 13. cxd5 {[%clk 0:02:12]}  Nxd5 {[%clk 0:02:42]} 14. e3 {[%clk 0:02:07]}  c5 {[%clk 0:02:41]} 15. Qd1 {[%clk 0:01:59]}  c4 {[%clk 0:02:31]} 16. Ne4 {[%clk 0:01:46]}  Nxf4 {[%clk 0:02:23]} 17. exf4 {[%clk 0:01:40]}  b5 {[%clk 0:02:21]} 18. a3 {[%clk 0:01:33]}  Bb7 {[%clk 0:02:16]} 19. Qe2 {[%clk 0:01:20]}  Nb6 {[%clk 0:02:09]} 20. Ne5 {[%clk 0:01:12]}  Rc7 {[%clk 0:02:05]} 21. Rd1 {[%clk 0:01:10]}  b4 {[%clk 0:01:57]} 22. axb4 {[%clk 0:01:09]}  axb4 {[%clk 0:01:58]} 23. Ra7 {[%clk 0:01:02]}  Bd5 {[%clk 0:01:55]} 24. Rda1 {[%clk 0:00:59]}  Qb8 {[%clk 0:01:38]} 25. Rxc7 {[%clk 0:00:46]}  Qxc7 {[%clk 0:01:38]} 26. Qe1 {[%clk 0:00:42]}  Rc8 {[%clk 0:01:33]} 27. Rc1 {[%clk 0:00:41]}  Qd8 {[%clk 0:01:27]} 28. h5 {[%clk 0:00:39]}  h6 {[%clk 0:01:26]} 29. Qe3 {[%clk 0:00:32]}  Na4 {[%clk 0:01:24]} 30. Qd2 {[%clk 0:00:29]}  c3 {[%clk 0:01:14]} 31. bxc3 {[%clk 0:00:28]}  bxc3 {[%clk 0:01:14]} 32. Qc2 {[%clk 0:00:20]}  Nb6 {[%clk 0:00:59]} 33. Nxc3 {[%clk 0:00:20]}  Bxg2 {[%clk 0:01:00]} 34. Kxg2 {[%clk 0:00:21]}  Ba3 {[%clk 0:00:54]} 35. Rb1 {[%clk 0:00:18]}  Nd5 {[%clk 0:00:51]} 36. Rb3 {[%clk 0:00:07]}  Bb4 {[%clk 0:00:51]} 37. Rxb4 {[%clk 0:00:07]}  Nxb4 {[%clk 0:00:51]} 38. Qd2 {[%clk 0:00:07]}  Rc7 {[%clk 0:00:41]} 39. Ne4 {[%clk 0:00:07]}  Qd5 {[%clk 0:00:38]} 40. f3 {[%clk 0:00:06]}  Rc2 {[%clk 0:00:36]} 0-1


[Site "https://www.chess.com"]